bitfinex-derivatives/quotes_BTCF0:USTF0_20260106
["timestamp","ask_amount","ask_price","bid_price","bid_amount"]
[1767707913356,0.09068,93793.0,93776.0,0.010667]
[1767707913556,0.09068,93793.0,93773.0,0.010667]
[1767707913757,0.010665,93791.0,93775.0,0.010667]
[1767707914056,0.02612615,93792.0,93776.0,0.010667]
[1767707914462,0.101345,93793.0,93774.0,0.05973963]
[1767707914652,0.010665,93793.0,93774.0,0.05973963]
[1767707915049,0.010665,93795.0,93776.0,0.010667]
[1767707915357,0.02612615,93796.0,93780.0,0.010666]
[1767707915560,0.02612615,93796.0,93778.0,0.010667]
[1767707915854,0.02612615,93796.0,93778.0,0.15041963]
[1767707916057,0.02612615,93796.0,93780.0,0.010666]
[1767707916356,0.03679115,93796.0,93779.0,0.010667]
[1767707917149,0.02612615,93796.0,93779.0,0.010667]
[1767707918152,0.02612615,93796.0,93781.0,0.010666]
[1767707918758,0.02612615,93796.0,93778.0,0.15041963]
[1767707918759,0.02612615,93801.0,93783.0,0.05973963]
[1767707918960,0.010664,93803.0,93785.0,0.07040563]
[1767707919562,0.02612615,93805.0,93787.0,0.010666]
[1767707919861,0.010664,93804.0,93785.0,0.07040563]
[1767707920060,0.010664,93803.0,93785.0,0.07040563]
[1767707920853,0.010664,93801.0,93785.0,0.05973963]
[1767707921259,0.010664,93800.0,93785.0,0.05973963]
[1767707921653,0.00780029,93800.0,93785.0,0.05973963]
[1767707922262,0.02612615,93806.0,93785.0,0.05973963]
[1767707922452,0.02612615,93804.0,93785.0,0.05973963]
[1767707922862,0.02612615,93804.0,93786.0,0.010666]
[1767707923063,0.010664,93802.0,93785.0,0.05973963]
[1767707923263,0.010664,93802.0,93787.0,0.010666]
[1767707923764,0.010664,93802.0,93786.0,0.010666]
[1767707924062,0.002132,93809.0,93778.0,0.09068]
[1767707924063,0.002132,93809.0,93787.0,0.05973963]
[1767707924259,0.010664,93803.0,93787.0,0.05973963]
[1767707924856,0.02612615,93808.0,93787.0,0.05973963]
[1767707925061,0.010664,93801.0,93787.0,0.05973963]
[1767707925364,0.010664,93802.0,93787.0,0.07040563]
[1767707925965,0.03679015,93802.0,93784.0,0.010666]
[1767707926158,0.03679015,93802.0,93783.0,0.010666]
[1767707926359,0.03679015,93802.0,93784.0,0.05973963]
[1767707927266,0.010664,93799.0,93784.0,0.05973963]
[1767707929870,0.010665,93797.0,93784.0,0.05973963]
[1767707930660,0.02612615,93802.0,93784.0,0.07040563]
[1767707930867,0.010664,93798.0,93784.0,0.05973963]
[1767707931161,0.010665,93795.0,93784.0,0.05973963]
[1767707931367,0.010664,93798.0,93780.0,0.10897543]
[1767707931564,0.010665,93797.0,93781.0,0.010666]
[1767707931756,0.010665,93797.0,93780.0,0.15804906]
[1767707932157,0.010665,93795.0,93780.0,0.15804906]
[1767707932365,0.010665,93789.0,93773.0,0.05973963]
[1767707932569,0.02612615,93786.0,93768.0,0.07021505]
[1767707932758,0.02612615,93786.0,93779.0,0.15980162]
[1767707932960,0.010666,93785.0,93774.0,0.09068]
[1767707933271,0.02612615,93790.0,93780.0,0.1601859]
[1767707933459,0.010665,93793.0,93780.0,0.1601859]
[1767707933771,0.010665,93793.0,93775.0,0.010667]
[1767707934070,0.010665,93793.0,93779.0,0.15899242]
[1767707934254,0.02612615,93794.0,93779.0,0.15899242]
[1767707934457,0.02612615,93794.0,93775.0,0.05973963]
[1767707934668,0.03679115,93794.0,93777.0,0.010667]
[1767707935068,0.03679115,93794.0,93778.0,0.16068187]
[1767707935568,0.010665,93793.0,93778.0,0.16068187]
[1767707935768,0.02612615,93794.0,93778.0,0.17134887]
[1767707935968,0.03679115,93794.0,93778.0,0.010667]
[1767707936169,0.02612615,93794.0,93779.0,0.16049455]
[1767707936354,0.02612615,93794.0,93780.0,0.10897543]
[1767707936557,0.02612615,93794.0,93779.0,0.010667]
[1767707936757,0.02358223,93798.0,93778.0,0.010667]
[1767707936970,0.02358223,93805.0,93786.0,0.010666]
[1767707937154,0.02358223,93805.0,93787.0,0.05649607]
[1767707937358,0.02358223,93805.0,93790.0,0.010665]
[1767707937667,0.02358223,93810.0,93790.0,0.1548055]
[1767707937865,0.02358223,93807.0,93790.0,0.05649607]
[1767707938064,0.02358223,93804.0,93786.0,0.09068]
[1767707938265,0.010665,93796.0,93786.0,0.09068]
[1767707938483,0.02358223,93796.0,93786.0,0.09068]
[1767707939169,0.02358223,93797.0,93779.0,0.010667]
[1767707939374,0.02358223,93796.0,93780.0,0.09068]
[1767707939667,0.02358223,93796.0,93780.0,0.25113282]
[1767707939974,0.03424723,93796.0,93780.0,0.26179882]
[1767707940470,0.03424723,93796.0,93780.0,0.36010825]
[1767707940669,0.02358223,93801.0,93782.0,0.010666]
[1767707940969,0.09830943,93800.0,93781.0,0.06716207]
[1767707941173,0.010664,93798.0,93781.0,0.05649607]
[1767707941474,0.010665,93789.0,93781.0,0.05649607]
[1767707941668,0.010665,93792.0,93781.0,0.05649607]
[1767707941868,0.010666,93788.0,93777.0,0.05727122]
[1767707942072,0.0249345,93799.0,93782.0,0.09068]
[1767707942372,0.0249345,93795.0,93778.0,0.15992685]
[1767707942573,0.010665,93791.0,93779.0,0.09068]
[1767707942774,0.0249345,93795.0,93779.0,0.09068]
[1767707942962,0.0249345,93795.0,93780.0,0.1609028]
[1767707943169,0.010665,93792.0,93780.0,0.1609028]
[1767707943475,0.0355995,93795.0,93780.0,0.1609028]
[1767707944273,0.010665,93793.0,93780.0,0.1609028]
[1767707945168,0.010665,93789.0,93780.0,0.1609028]
[1767707945369,0.010665,93792.0,93780.0,0.1609028]
[1767707945570,0.010665,93790.0,93780.0,0.1609028]
[1767707946376,0.08290742,93798.0,93780.0,0.1609028]
[1767707947876,0.08290742,93798.0,93780.0,0.25921223]
[1767707948075,0.010665,93792.0,93780.0,0.25921223]
[1767707948277,0.010665,93791.0,93780.0,0.25921223]
[1767707949178,0.010665,93789.0,93780.0,0.25921223]
[1767707949366,0.010665,93789.0,93780.0,0.31493597]
[1767707950078,0.010665,93789.0,93780.0,0.21662654]
[1767707950576,0.010665,93791.0,93780.0,0.21662654]
[1767707951878,0.0249345,93798.0,93780.0,0.21662654]
[1767707952083,0.0249345,93798.0,93780.0,0.31493597]
[1767707952882,0.010665,93792.0,93780.0,0.31493597]
[1767707953064,0.010665,93797.0,93780.0,0.31493597]
[1767707953264,0.010666,93783.0,93780.0,0.09830943]
[1767707953470,0.0355995,93794.0,93770.0,0.09830943]
[1767707953674,0.010666,93782.0,93771.0,0.81024]
[1767707953870,0.010665,93792.0,93780.0,5e-07]
[1767707954180,0.010666,93784.0,93781.0,0.09068]
[1767707954381,0.06863792,93794.0,93780.0,0.09068]
[1767707955172,0.010666,93784.0,93780.0,0.09068]
[1767707955480,0.010665,93793.0,93780.0,0.09068]
[1767707955778,0.010666,93787.0,93780.0,0.09068]
[1767707955970,0.010666,93785.0,93780.0,0.09068]
[1767707956166,0.0249345,93797.0,93780.0,0.09068]
[1767707956373,0.010666,93785.0,93780.0,0.09068]
[1767707956873,0.010666,93789.0,93780.0,0.09068]
[1767707957074,0.010666,93785.0,93780.0,0.09068]
[1767707957268,0.010666,93784.0,93780.0,0.09068]
[1767707957470,0.010665,93794.0,93780.0,0.09068]
[1767707957676,0.010667,93777.0,93772.0,0.09068]
[1767707957877,0.010667,93779.0,93772.0,0.09068]
[1767707958182,0.010667,93779.0,93778.0,2e-07]
[1767707958581,0.0249345,93787.0,93776.0,4e-07]
[1767707958779,0.0249345,93787.0,93772.0,0.09068]
[1767707958983,0.0249345,93787.0,93778.0,8.4e-07]
[1767707959281,0.0249345,93787.0,93773.0,0.16101084]
[1767707959681,0.010664,93805.0,93730.0,1.20421369]
[1767707959682,0.010668,93768.0,93758.0,0.05572374]
[1767707959985,0.010668,93768.0,93730.0,0.1983]
[1767707959986,0.010668,93769.0,93767.0,5.2e-07]
[1767707960182,0.010668,93769.0,93759.0,0.00322185]
[1767707960482,0.09830943,93770.0,93758.0,0.16035052]
[1767707960777,0.09830943,93770.0,93754.0,0.15737764]
[1767707960982,0.09830943,93770.0,93759.0,0.17162485]
[1767707961174,0.06863992,93772.0,93758.0,0.16095585]
[1767707961379,0.06863992,93772.0,93760.0,0.16095585]
[1767707961773,0.06863992,93772.0,93757.0,0.16095585]
[1767707961978,0.06863992,93772.0,93756.0,0.010669]
[1767707962188,0.06863992,93772.0,93757.0,0.15920352]
[1767707962686,0.05797292,93772.0,93757.0,0.15920352]
[1767707962888,0.05797292,93767.0,93757.0,0.15920352]
[1767707963186,0.09830943,93770.0,93755.0,0.010669]
[1767707963586,0.09830943,93770.0,93756.0,0.15920352]
[1767707964289,0.06863992,93772.0,93756.0,0.15920352]
[1767707965590,0.05797292,93772.0,93757.0,0.010669]
[1767707965893,0.05797292,93772.0,93758.0,0.15904555]
[1767707966095,0.05797292,93772.0,93759.0,0.010669]
[1767707966491,0.05797292,93772.0,93760.0,0.15904555]
[1767707967294,0.05797292,93772.0,93761.0,0.010669]
[1767707967684,0.05797292,93772.0,93762.0,0.16078245]
[1767707969399,0.45797292,93772.0,93762.0,0.16078245]
[1767707969598,0.45797292,93772.0,93757.0,0.010669]
[1767707969796,0.05797292,93772.0,93758.0,0.15902555]
[1767707970001,0.0249345,93778.0,93760.0,0.09830943]
[1767707970204,0.0249345,93778.0,93758.0,0.18289471]
[1767707970406,0.08290742,93778.0,93761.0,0.15509155]
[1767707970703,0.09830943,93780.0,93762.0,0.02386916]
[1767707970998,0.010667,93777.0,93762.0,0.02386916]
[1767707971201,0.010667,93775.0,93763.0,0.15902555]
[1767707971602,0.010667,93775.0,93761.0,0.010669]
[1767707971910,0.010667,93775.0,93762.0,0.1596339]
[1767707972319,0.010667,93773.0,93762.0,0.1596339]
[1767707972498,0.010668,93771.0,93762.0,0.1596339]
[1767707972701,0.010668,93769.0,93761.0,0.1596339]
[1767707972898,0.09830943,93772.0,93755.0,0.03657055]
[1767707973106,0.010668,93769.0,93760.0,0.16100673]
[1767707973408,0.010668,93769.0,93757.0,0.16100673]
[1767707974800,0.10897743,93770.0,93758.0,0.010669]
[1767707975108,0.010668,93770.0,93759.0,0.15908709]
[1767707975498,0.09068,93778.0,93759.0,0.15908709]
[1767707975698,0.09068,93778.0,93758.0,0.15908709]
[1767707976112,0.13454229,93778.0,93757.0,0.03538544]
[1767707976306,0.010667,93772.0,93757.0,0.03538544]
[1767707976498,0.010667,93772.0,93758.0,0.16055806]
[1767707976694,0.010667,93772.0,93758.0,0.19477888]
[1767707977002,0.010667,93772.0,93758.0,0.03422082]
[1767707977508,0.010667,93772.0,93759.0,0.19296106]
[1767707977898,0.010667,93772.0,93759.0,0.03375882]
[1767707978308,0.010668,93768.0,93760.0,0.159527]
[1767707979202,0.010668,93771.0,93760.0,0.159527]
[1767707980717,0.13454229,93778.0,93760.0,0.159527]
[1767707980909,0.010668,93770.0,93760.0,0.159527]
[1767707981299,0.010667,93773.0,93760.0,0.159527]
[1767707981708,0.010668,93771.0,93760.0,0.159527]
[1767707982106,0.010668,93771.0,93758.0,0.03200889]
[1767707982307,0.010667,93773.0,93759.0,0.16993737]
[1767707983212,0.010667,93773.0,93759.0,0.20149604]
[1767707984610,0.13454229,93778.0,93759.0,0.19082704]
[1767707984813,0.13454229,93778.0,93761.0,0.010669]
[1767707985210,0.010667,93775.0,93762.0,0.15909099]
[1767707987014,0.010667,93773.0,93762.0,0.15909099]
[1767707987314,0.010668,93772.0,93760.0,0.15974577]
[1767707987516,0.09068,93778.0,93760.0,0.15974577]
[1767707987710,0.010667,93772.0,93760.0,0.15974577]
[1767707988621,0.09068,93778.0,93760.0,0.15974577]
[1767707989012,0.09068,93778.0,93760.0,0.1884556]
[1767707989413,0.09068,93778.0,93760.0,0.02870983]
[1767707989910,0.07358935,93779.0,93761.0,0.16058728]
[1767707990120,0.010668,93771.0,93761.0,0.16058728]
[1767707990316,0.010668,93770.0,93761.0,0.16058728]
[1767707990516,0.010668,93769.0,93761.0,0.16058728]
[1767707990923,0.010668,93767.0,93761.0,0.16058728]
[1767707991315,0.16426935,93778.0,93759.0,0.18679059]
[1767707991623,0.16426935,93778.0,93759.0,0.02831628]
[1767707991923,0.16426935,93778.0,93760.0,0.15909191]
[1767707992124,0.010668,93770.0,93760.0,0.15909191]
[1767707993325,0.010668,93770.0,93760.0,0.18671118]
[1767707993627,0.010668,93770.0,93760.0,0.02761927]
[1767707994026,0.16426935,93778.0,93761.0,0.15936423]
[1767707994622,0.010668,93770.0,93761.0,0.15936423]
[1767707995431,0.16426935,93778.0,93761.0,0.15936423]
[1767707995621,0.010668,93771.0,93761.0,0.15936423]
[1767707996428,0.010668,93770.0,93761.0,0.15936423]
[1767707997330,0.010667,93773.0,93761.0,0.15936423]
[1767707998831,0.16426935,93778.0,93761.0,0.15936423]
[1767707999233,0.16426935,93778.0,93761.0,0.17003323]
[1767708000137,0.010667,93774.0,93761.0,0.17003323]
[1767708000436,0.16426935,93778.0,93761.0,0.18283334]
[1767708000638,0.09068,93778.0,93763.0,0.03413711]
[1767708000838,0.010667,93777.0,93765.0,0.010668]
[1767708001133,0.010667,93777.0,93763.0,0.02346911]
[1767708001933,0.07075803,93783.0,93766.0,0.010668]
[1767708001934,0.010667,93780.0,93766.0,0.010668]
[1767708002525,0.09068,93782.0,93770.0,0.02248679]
[1767708002728,0.010666,93787.0,93771.0,0.09916986]
[1767708002931,0.010666,93787.0,93758.0,0.010669]
[1767708002932,0.09068,93786.0,93778.0,0.02248679]
[1767708003127,0.09068,93787.0,93773.0,0.02320422]
[1767708003435,0.09068,93789.0,93770.0,0.02320422]
[1767708003635,0.09068,93789.0,93771.0,0.02320422]
[1767708004022,0.010666,93785.0,93771.0,0.02320422]
[1767708004224,0.09068,93789.0,93771.0,0.02320422]
[1767708005129,0.010666,93785.0,93771.0,0.02320422]
[1767708005530,0.09068,93789.0,93771.0,0.02320422]
[1767708005531,0.010666,93788.0,93772.0,0.02322864]
[1767708005826,0.010666,93786.0,93772.0,0.02322864]
[1767708006735,0.00117205,93779.0,93772.0,0.02322864]
[1767708006923,0.010666,93786.0,93772.0,0.02322864]
[1767708007127,0.010666,93784.0,93772.0,0.02322864]
[1767708007527,0.010666,93786.0,93772.0,0.02322864]
[1767708008037,0.010666,93786.0,93774.0,0.09833633]
[1767708008241,0.010666,93787.0,93772.0,0.010667]
[1767708008440,0.010666,93785.0,93771.0,0.02165326]
[1767708008740,0.010666,93785.0,93771.0,0.03232026]
[1767708009238,0.010666,93785.0,93771.0,0.02165326]
[1767708010831,0.101346,93788.0,93772.0,0.010667]
[1767708011134,0.101346,93788.0,93771.0,0.02165326]
[1767708011437,0.09068,93789.0,93774.0,0.02077821]
[1767708011633,0.09068,93792.0,93782.0,0.07668307]
[1767708011938,0.09068,93792.0,93773.0,0.02077821]
[1767708012240,0.11009719,93795.0,93773.0,0.02077821]
[1767708012536,0.13010151,93794.0,93773.0,0.02077821]
[1767708012927,0.010666,93787.0,93773.0,0.02077821]
[1767708013338,0.010666,93787.0,93774.0,0.010667]
[1767708013637,0.13010151,93794.0,93774.0,0.03068221]
[1767708013829,0.010666,93789.0,93774.0,0.03068221]
[1767708014632,0.010665,93792.0,93778.0,0.010667]
[1767708014823,0.010665,93794.0,93783.0,0.01960489]
[1767708015029,0.09068,93798.0,93783.0,0.01960489]
[1767708015224,0.09068,93798.0,93784.0,0.01944403]
[1767708015435,0.010664,93800.0,93784.0,0.03011003]
[1767708015738,0.010664,93798.0,93785.0,0.01944403]
[1767708016741,0.09068,93801.0,93788.0,0.07668307]
[1767708016940,0.09068,93801.0,93789.0,0.0194256]
[1767708017142,0.010664,93800.0,93789.0,0.0194256]
[1767708017340,0.11009719,93807.0,93788.0,0.07668307]
[1767708017530,0.09068,93807.0,93791.0,0.0198193]
[1767708017841,0.101343,93807.0,93791.0,0.0198193]
[1767708018242,0.101343,93807.0,93791.0,0.0304843]
[1767708018433,0.101343,93807.0,93793.0,0.010665]
[1767708019837,0.002132,93809.0,93792.0,0.01896367]
[1767708020039,0.012795,93809.0,93794.0,0.010665]
[1767708020240,0.012795,93809.0,93795.0,0.010665]
[1767708021327,0.002132,93809.0,93795.0,0.010665]
[1767708021926,0.010662,93816.0,93800.0,0.01735441]
[1767708022141,0.09068,93817.0,93803.0,0.01735441]
[1767708022438,0.010663,93815.0,93803.0,0.01735441]
[1767708022638,0.010663,93815.0,93802.0,0.07668307]
[1767708023240,0.010663,93811.0,93802.0,0.07668307]
[1767708025045,0.09068,93818.0,93802.0,0.07668307]
[1767708025246,0.010663,93811.0,93802.0,0.07668307]
[1767708025441,0.010662,93817.0,93802.0,0.07668307]
[1767708025641,0.010662,93817.0,93800.0,0.01735441]
[1767708025838,0.010663,93811.0,93795.0,0.09068]
[1767708026141,0.07067568,93810.0,93795.0,0.09068]
[1767708026349,0.010663,93807.0,93795.0,0.09068]
[1767708026649,0.010664,93803.0,93795.0,0.09068]
[1767708027949,0.010663,93814.0,93796.0,0.0057564]
[1767708028951,0.010664,93804.0,93796.0,0.0057564]
[1767708029450,0.010663,93814.0,93796.0,0.0057564]
[1767708029851,0.010664,93805.0,93796.0,0.0057564]
[1767708030053,0.010663,93814.0,93796.0,0.0057564]
[1767708031246,0.07067568,93815.0,93796.0,0.0057564]
[1767708031247,0.010664,93805.0,93796.0,0.0057564]
[1767708031454,0.010663,93814.0,93800.0,0.01408867]
[1767708031652,0.010663,93814.0,93801.0,0.00342467]
[1767708032147,0.07564971,93820.0,93801.0,0.00342467]
[1767708032351,0.010662,93823.0,93809.0,0.00342467]
[1767708032652,0.010662,93816.0,93809.0,0.00342467]
[1767708033059,0.010662,93816.0,93807.0,0.09068]
[1767708033260,0.010662,93819.0,93807.0,0.09068]
[1767708034353,0.010662,93817.0,93807.0,0.09068]
[1767708035352,0.010662,93820.0,93807.0,0.09068]
[1767708036856,0.07564971,93825.0,93807.0,0.09068]
[1767708036857,0.07564971,93824.0,93807.0,0.09068]
[1767708037047,0.010663,93813.0,93807.0,0.09068]
[1767708037354,0.07564971,93823.0,93807.0,0.09068]
[1767708037743,0.010663,93809.0,93794.0,0.010665]
[1767708038050,0.07564971,93812.0,93795.0,0.09068]
[1767708038255,0.07564971,93812.0,93795.0,0.24981334]
[1767708038456,0.010663,93807.0,93795.0,0.09068]
[1767708038655,0.010663,93807.0,93796.0,0.15913334]
[1767708039254,0.010664,93805.0,93796.0,0.15913334]
[1767708039460,0.07564971,93812.0,93796.0,0.15913334]
[1767708039961,0.010663,93811.0,93796.0,0.15913334]
[1767708040159,0.010663,93814.0,93798.0,0.010664]
[1767708040553,0.010663,93814.0,93800.0,0.010664]
[1767708041863,0.09064,93821.0,93802.0,0.010664]
[1767708042364,0.09064,93821.0,93807.0,0.010663]
[1767708042764,0.010662,93821.0,93805.0,0.010664]
[1767708044558,0.010662,93821.0,93802.0,0.010664]
[1767708044753,0.07564971,93824.0,93797.0,0.010664]
[1767708044754,0.010663,93812.0,93797.0,0.010664]
[1767708045357,0.03750108,93818.0,93797.0,0.010664]
[1767708045358,0.010662,93817.0,93797.0,0.010664]
[1767708045557,0.010663,93815.0,93797.0,0.010664]
[1767708045962,0.07564971,93817.0,93802.0,0.010664]
[1767708046162,0.010662,93818.0,93802.0,0.010664]
[1767708046363,0.08631171,93818.0,93802.0,0.010664]
[1767708046564,0.010662,93816.0,93802.0,0.010664]
[1767708046761,0.07564971,93818.0,93804.0,0.010664]
[1767708047370,0.07564971,93818.0,93800.0,0.09828148]
[1767708047667,0.07564971,93818.0,93806.0,0.010663]
[1767708047965,0.09064,93822.0,93814.0,0.010663]
[1767708048172,0.09064,93822.0,93802.0,0.07045619]
[1767708048869,0.07564971,93823.0,93802.0,0.07045619]
[1767708049576,0.08631171,93823.0,93802.0,0.07045619]
[1767708050075,0.07564971,93823.0,93808.0,0.010663]
[1767708050461,0.09828148,93820.0,93805.0,0.010664]
[1767708050675,0.010662,93816.0,93800.0,0.09828148]
[1767708051175,0.010662,93816.0,93803.0,0.010664]
[1767708051775,0.010662,93816.0,93800.0,0.010664]
[1767708051965,0.010662,93816.0,93802.0,0.010664]
[1767708054772,0.010662,93817.0,93801.0,0.010664]
[1767708055874,0.010663,93815.0,93801.0,0.010664]
[1767708058381,0.010663,93813.0,93801.0,0.010664]
[1767708058771,0.010663,93815.0,93801.0,0.010664]
[1767708059275,0.08631171,93818.0,93803.0,0.010664]
[1767708060877,0.07564971,93818.0,93806.0,0.010664]
[1767708061377,0.07564971,93818.0,93796.0,0.07045619]
[1767708061576,0.07564971,93818.0,93795.0,0.23541457]
[1767708061577,0.10710172,93813.0,93795.0,0.13406957]
[1767708061777,0.07204965,93812.0,93797.0,0.16060911]
[1767708061976,0.07204965,93812.0,93802.0,0.010664]
[1767708062172,0.09828148,93820.0,93797.0,0.010665]
[1767708062484,0.09828148,93820.0,93809.0,0.010663]
[1767708062677,0.09828148,93820.0,93802.0,0.010664]
[1767708063079,0.09828148,93820.0,93807.0,0.010663]
[1767708063987,0.010662,93818.0,93802.0,0.010664]
[1767708064380,0.03505207,93815.0,93796.0,0.26004766]
[1767708064685,0.03505207,93815.0,93797.0,0.15892558]
[1767708064888,0.03505207,93815.0,93806.0,0.010663]
[1767708065381,0.03505207,93815.0,93808.0,0.010663]
[1767708065581,0.07204965,93814.0,93810.0,0.010663]
[1767708066088,0.03505207,93819.0,93811.0,0.010663]
[1767708066387,0.03505207,93819.0,93814.0,0.010663]
[1767708067088,0.03505207,93819.0,93799.0,0.25575462]
[1767708067279,0.03505207,93819.0,93800.0,0.10894548]
[1767708067480,0.03505207,93816.0,93805.0,0.010664]
[1767708067791,0.03505207,93816.0,93799.0,0.07568296]
[1767708068089,0.03505207,93805.0,93796.0,0.13406957]
[1767708068290,0.03505207,93803.0,93796.0,0.05444689]
[1767708068492,0.03505207,93794.0,93782.0,0.010666]
[1767708068696,0.07204965,93795.0,93778.0,0.19131598]
[1767708068697,0.13333355,93792.0,93779.0,0.01279968]
[1767708068893,0.03505207,93792.0,93779.0,0.00213268]
[1767708069093,0.03505207,93792.0,93784.0,0.010666]
[1767708069288,6.5e-07,93791.0,93787.0,0.010666]
[1767708069587,0.03505207,93799.0,93779.0,0.00213268]
[1767708069778,0.03505207,93799.0,93787.0,0.010666]
[1767708069981,0.03505207,93799.0,93781.0,0.15924097]
[1767708070178,0.03505207,93799.0,93780.0,0.15924097]
[1767708070179,0.03505207,93799.0,93788.0,0.010666]
[1767708070383,0.03505207,93799.0,93780.0,0.010666]
[1767708070594,0.03505207,93799.0,93782.0,0.15989378]
[1767708070782,0.03505207,93799.0,93792.0,0.010665]
[1767708071282,0.03505207,93799.0,93781.0,0.17055978]
[1767708071483,0.03505207,93799.0,93788.0,0.010665]
[1767708071678,0.03505207,93799.0,93787.0,0.010666]
[1767708071889,0.03505207,93799.0,93788.0,0.010666]
[1767708072088,0.03505207,93799.0,93790.0,0.010665]
[1767708072488,0.03505207,93799.0,93779.0,0.07781564]
[1767708072690,7.2e-07,93799.0,93797.0,0.010665]
[1767708072891,0.09064,93804.0,93797.0,0.010665]
[1767708074296,0.09064,93804.0,93799.0,0.010664]
[1767708074698,0.03505207,93803.0,93796.0,0.010665]
[1767708074901,0.03505207,93803.0,93798.0,0.010664]
[1767708075196,0.03505207,93803.0,93800.0,0.010664]
[1767708076496,0.03505207,93803.0,93797.0,0.010664]
[1767708076701,7e-08,93803.0,93788.0,0.010666]
[1767708077290,7e-08,93803.0,93789.0,0.010665]
[1767708077498,0.16268965,93804.0,93789.0,0.010665]
[1767708077902,0.09828148,93800.0,93786.0,0.010666]
[1767708078601,0.09828148,93800.0,93784.0,0.39999993]
[1767708078998,0.09828148,93800.0,93785.0,0.010666]
[1767708079797,0.09068,93799.0,93787.0,0.010666]
[1767708080204,0.09068,93799.0,93784.0,0.47568289]
[1767708080405,0.09068,93799.0,93787.0,0.010666]
[1767708080700,0.09068,93799.0,93784.0,0.48634889]
[1767708080892,0.09068,93799.0,93784.0,0.47568289]
[1767708081297,0.09068,93799.0,93785.0,0.010666]
[1767708081900,0.09068,93799.0,93784.0,0.47568289]
[1767708082103,0.09068,93799.0,93784.0,0.48634889]
[1767708082402,0.010664,93807.0,93789.0,0.08634796]
[1767708082610,0.09068,93806.0,93789.0,0.07568296]
[1767708082898,0.12276431,93806.0,93792.0,0.010665]
[1767708083105,0.12276431,93806.0,93790.0,0.39999993]
[1767708083505,0.12276431,93806.0,93795.0,0.010665]
[1767708083711,0.12276431,93806.0,93794.0,0.010665]
[1767708084008,0.13342831,93806.0,93792.0,0.010665]
[1767708084196,0.12276431,93806.0,93790.0,0.39999993]
[1767708084397,0.010665,93797.0,93790.0,0.39999993]
[1767708084598,0.03098331,93805.0,93790.0,0.39999993]
[1767708085406,0.010665,93797.0,93790.0,0.39999993]
[1767708086206,0.09828148,93810.0,93792.0,0.07568296]
[1767708086405,0.09068,93809.0,93792.0,0.07568296]
[1767708086808,0.12014023,93809.0,93792.0,0.07568296]
[1767708087107,0.010664,93800.0,93792.0,0.07568296]
[1767708087604,0.12014023,93809.0,93792.0,0.07568296]
[1767708087806,0.010664,93802.0,93792.0,0.07568296]
[1767708088009,0.25865718,93838.0,93796.0,0.07568296]
[1767708088010,0.09068,93804.0,93796.0,0.07568296]
[1767708089204,0.101344,93804.0,93796.0,0.07568296]
[1767708089393,0.010664,93804.0,93796.0,0.07568296]
[1767708089803,0.09068,93805.0,93791.0,0.03533809]
[1767708090309,0.010665,93796.0,93791.0,0.03533809]
[1767708090808,0.010665,93796.0,93790.0,0.39999993]
[1767708091009,0.12848428,93810.0,93790.0,0.39999993]
[1767708091219,0.09068,93809.0,93791.0,0.04717636]
[1767708091906,0.010663,93809.0,93793.0,0.04717636]
[1767708092112,0.09068,93810.0,93798.0,0.04717636]
[1767708092408,0.010663,93812.0,93800.0,0.04717636]
[1767708092713,0.010662,93816.0,93808.0,0.04717636]
[1767708092908,0.010662,93819.0,93808.0,0.04717636]
[1767708093106,0.010662,93822.0,93809.0,0.39999993]
[1767708093311,0.1268854,93828.0,93809.0,0.44717629]
[1767708093498,0.010662,93823.0,93809.0,0.44717629]
[1767708093697,0.010662,93823.0,93812.0,0.04717636]
[1767708095103,0.010662,93824.0,93812.0,0.04717636]
[1767708095812,0.010662,93824.0,93812.0,0.1412685]
[1767708097610,0.010662,93822.0,93812.0,0.1412685]
[1767708097808,0.010662,93816.0,93812.0,0.1412685]
[1767708098110,0.010663,93813.0,93809.0,0.39999993]
[1767708098311,0.09828148,93822.0,93809.0,0.39999993]
[1767708098514,0.010662,93824.0,93809.0,0.39999993]
[1767708099214,0.010663,93814.0,93809.0,0.39999993]
[1767708100512,0.09068,93826.0,93810.0,0.04717636]
[1767708100714,0.09068,93826.0,93811.0,0.1412685]
[1767708101019,0.09068,93826.0,93812.0,0.04717636]
[1767708101711,0.010662,93820.0,93812.0,0.04717636]
[1767708101912,0.09068,93826.0,93812.0,0.04717636]
[1767708102816,0.010661,93829.0,93812.0,0.04717636]
[1767708103309,0.010661,93827.0,93812.0,0.04717636]
[1767708103718,0.04676603,93829.0,93810.0,0.09828148]
[1767708103906,0.010662,93818.0,93810.0,0.14545784]
[1767708104103,0.010661,93829.0,93811.0,0.04717636]
[1767708104918,0.010662,93818.0,93811.0,0.04717636]
[1767708105111,0.010661,93828.0,93812.0,0.39999993]
[1767708105919,0.010663,93814.0,93812.0,9.3e-07]
[1767708106122,0.010662,93818.0,93812.0,9.3e-07]
[1767708106323,0.010662,93818.0,93810.0,0.09828148]
[1767708106717,0.010662,93821.0,93810.0,0.09828148]
[1767708107228,0.010662,93819.0,93810.0,0.09828148]
[1767708107613,0.010662,93820.0,93810.0,0.14545784]
[1767708107917,0.010662,93820.0,93811.0,0.04717636]
[1767708109223,0.010662,93823.0,93811.0,0.04717636]
[1767708109727,0.09064,93828.0,93811.0,0.04717636]
[1767708109728,0.101301,93828.0,93812.0,0.04717636]
[1767708110118,0.010661,93826.0,93813.0,0.04717636]
[1767708110718,0.10557173,93841.0,93820.0,0.04717636]
[1767708110923,0.09064,93837.0,93821.0,0.04717636]
[1767708111123,0.010661,93829.0,93821.0,0.04717636]
[1767708111926,0.09064,93836.0,93821.0,0.04717636]
[1767708112116,0.09064,93836.0,93821.0,0.1412685]
[1767708112627,0.09064,93836.0,93823.0,0.09409214]
[1767708112829,0.09064,93836.0,93820.0,0.04717636]
[1767708113925,0.09064,93836.0,93823.0,0.1412685]
[1767708113926,0.01066,93834.0,93823.0,0.1412685]
[1767708114125,0.09064,93836.0,93824.0,0.04717636]
[1767708114626,0.09491173,93842.0,93824.0,0.04717636]
[1767708114827,0.09064,93838.0,93823.0,0.09409214]
[1767708115027,0.09491173,93836.0,93808.0,0.04717636]
[1767708115218,0.09491173,93834.0,93808.0,0.04717636]
[1767708115527,0.010661,93826.0,93808.0,0.15975428]
[1767708116729,0.09491173,93833.0,93808.0,0.15975428]